bitfinex/quotes_ETHUSD_20250720
["timestamp","ask_amount","ask_price","bid_price","bid_amount"]
[1753008704236,13.16097,3700.6,3700.5,7.3138933]
[1753008705268,14.39097,3700.6,3700.5,3.2068933]
[1753008705567,14.39097,3700.6,3700.5,7.3138933]
[1753008706226,13.0827,3700.6,3700.5,7.3138933]
[1753008706664,14.3127,3700.6,3700.5,7.3138933]
[1753008707242,14.3127,3700.6,3700.5,3.2068933]
[1753008707434,14.3127,3700.6,3700.5,7.3128933]
[1753008708224,15.5427,3700.6,3700.5,7.3128933]
[1753008708732,17.21997,3700.6,3700.5,7.3128933]
[1753008709666,18.44997,3700.6,3700.5,3.2068933]
[1753008709876,18.44997,3700.6,3700.5,7.3118933]
[1753008710942,19.67997,3700.6,3700.5,7.3118933]
[1753008711376,19.67997,3700.6,3700.5,3.2068933]
[1753008711540,19.67997,3700.6,3700.5,7.3118933]
[1753008711967,19.67997,3700.6,3700.5,7.106]
[1753008712474,20.90997,3700.6,3700.5,7.106]
[1753008713276,20.90997,3700.6,3700.5,3.001]
[1753008713496,20.90997,3700.6,3700.5,7.106]
[1753008713658,22.13997,3700.6,3700.5,7.106]
[1753008715087,21.70067,3700.6,3700.5,7.106]
[1753008715265,23.36997,3700.6,3700.5,7.106]
[1753008715465,23.36997,3700.6,3700.5,3.001]
[1753008715792,22.93067,3700.6,3700.5,7.106]
[1753008716493,19.68,3700.6,3700.5,7.6829]
[1753008716786,20.91,3700.6,3700.5,7.6829]
[1753008718093,22.14,3700.6,3700.5,7.6829]
[1753008719483,23.37,3700.6,3700.5,7.6829]
[1753008720681,24.6,3700.6,3700.5,7.6829]
[1753008722107,24.6,3700.6,3700.5,35.857481]
[1753008722310,25.83,3700.6,3700.5,24.981746]
[1753008722514,25.83,3700.6,3700.5,23.731451]
[1753008723310,25.83,3700.6,3700.5,7.7047]
[1753008723612,25.83,3700.6,3700.5,25.486404]
[1753008723818,27.06,3700.6,3700.5,25.486404]
[1753008724404,27.06,3700.6,3700.5,37.7047]
[1753008724580,27.06,3700.6,3700.5,34.936448]
[1753008724915,27.06,3700.6,3700.5,36.529548]
[1753008725089,28.29,3700.6,3700.5,13.565419]
[1753008725512,28.29,3700.6,3700.5,9.2978]
[1753008725676,28.29,3700.6,3700.5,12.80056]
[1753008725876,28.29,3700.6,3700.5,11.8165]
[1753008726071,28.29,3700.6,3700.5,12.023899]
[1753008726317,29.52,3700.6,3700.5,7.748983]
[1753008726471,29.52,3700.6,3700.5,7.2394]
[1753008726472,32.27896318,3700.6,3700.5,7.2394]
[1753008726678,32.74976318,3700.6,3700.5,7.2394]
[1753008726878,34.30626318,3700.6,3700.5,7.2394]
[1753008727115,34.30626318,3700.6,3700.5,7.105]
[1753008727775,35.53626318,3700.6,3700.5,7.105]
[1753008728209,35.53626318,3700.6,3700.5,3.001]
[1753008728411,35.53626318,3700.6,3700.5,7.105]
[1753008729212,36.76626318,3700.6,3700.5,7.105]
[1753008730437,36.76626318,3700.6,3700.5,3.001]
[1753008730596,37.99626318,3700.6,3700.5,7.105]
[1753008731896,39.22626318,3700.6,3700.5,7.105]
[1753008733636,40.45626318,3700.6,3700.5,7.105]
[1753008734729,40.45626318,3700.6,3700.5,3.001]
[1753008734955,41.68626318,3700.6,3700.5,7.106]
[1753008735832,41.68626318,3700.6,3700.5,7.105]
[1753008736358,42.91626318,3700.6,3700.5,7.105]
[1753008736543,42.91626318,3700.6,3700.1,0.1354]
[1753008736544,46.07976318,3700.6,3700.1,0.001]
[1753008736854,0.1344,3700.3,3700.2,4.104]
[1753008737032,0.6052,3700.3,3700.2,4.104]
[1753008737734,1.8352,3700.3,3700.2,4.104]
[1753008738753,1.8352,3700.3,3700.2,7.105]
[1753008738957,4.59416318,3700.3,3700.2,7.105]
[1753008739176,5.82416318,3700.3,3700.2,7.105]
[1753008740558,7.05416318,3700.3,3700.2,7.105]
[1753008741087,6.58336318,3700.3,3700.2,7.105]
[1753008741676,3.69,3700.3,3700.2,7.105]
[1753008741847,4.92,3700.3,3700.2,7.105]
[1753008742584,4.92,3700.3,3700.2,7.5693]
[1753008743087,4.92,3700.3,3700.2,7.105]
[1753008743289,6.15,3700.3,3700.2,7.105]
[1753008744883,7.38,3700.3,3700.2,7.105]
[1753008746153,8.61,3700.3,3700.2,7.105]
[1753008747398,10.20352095,3700.3,3700.2,7.105]
[1753008747600,11.43352095,3700.3,3700.2,7.105]
[1753008747807,11.87072095,3700.3,3700.2,3.0]
[1753008748115,11.43352095,3700.3,3700.2,7.105]
[1753008748262,9.84,3700.3,3700.2,3.0]
[1753008748463,9.84,3700.3,3700.2,7.105]
[1753008748885,11.07,3700.3,3700.2,7.105]
[1753008749099,11.07,3700.3,3700.2,5.2469]
[1753008749295,11.07,3700.3,3700.2,9.3519]
[1753008750181,12.3,3700.3,3700.2,12.846582]
[1753008751422,12.3,3700.3,3700.2,24.560995]
[1753008751589,13.53,3700.3,3700.2,12.13752]
[1753008752215,13.53,3700.3,3700.2,9.3519]
[1753008752408,13.53,3700.3,3700.2,13.586346]
[1753008752618,13.53,3700.3,3700.2,12.867458]
[1753008752914,14.76,3700.3,3700.2,12.867458]
[1753008754472,15.99,3700.3,3700.2,12.867458]
[1753008755874,17.22,3700.3,3700.2,12.867458]
[1753008756911,17.22,3700.3,3700.2,39.3519]
[1753008757212,17.22,3700.3,3700.2,38.274805]
[1753008757394,18.45,3700.3,3700.2,30.72211]
[1753008757601,18.45,3700.3,3700.2,9.3519]
[1753008757789,18.45,3700.3,3700.2,7.6988]
[1753008758779,19.68,3700.3,3700.2,7.6988]
[1753008759680,19.68,3700.3,3700.2,7.6978]
[1753008759911,19.68,3700.3,3700.2,7.2384]
[1753008760219,20.91,3700.3,3700.2,7.2384]
[1753008761599,22.14,3700.3,3700.2,3.1344]
[1753008761808,22.14,3700.3,3700.2,7.2384]
[1753008762327,22.14,3700.3,3700.2,3.1344]
[1753008762486,22.14,3700.3,3700.2,7.2384]
[1753008763625,23.37,3700.3,3700.2,7.2384]
[1753008765035,24.6,3700.3,3700.2,7.2384]
[1753008766038,24.6,3700.3,3700.2,3.1344]
[1753008766245,24.6,3700.3,3700.2,7.2384]
[1753008766445,25.83,3700.3,3700.2,7.2384]
[1753008767237,29.02616318,3700.3,3700.2,7.2384]
[1753008767752,30.25616318,3700.3,3700.2,7.2384]
[1753008768044,31.86946318,3700.3,3700.2,7.104]
[1753008769112,33.09946318,3700.3,3700.2,7.104]
[1753008770758,34.32946318,3700.3,3700.2,7.104]
[1753008772053,35.55946318,3700.3,3700.2,7.104]
[1753008773429,36.78946318,3700.3,3700.2,7.104]
[1753008774753,38.01946318,3700.3,3700.2,7.104]
[1753008776022,38.01946318,3700.3,3700.1,0.001]
[1753008776223,3.19616318,3700.2,3700.1,0.001]
[1753008776431,3.19616318,3700.2,3700.1,4.105]
[1753008776629,3.19616318,3700.2,3700.1,7.105]
[1753008777238,3.19616318,3700.2,3700.1,3.001]
[1753008777444,3.19616318,3700.2,3700.1,7.105]
[1753008777660,4.42616318,3700.2,3700.1,3.001]
[1753008777827,1.7832,3700.1,3699.8,0.001]
[1753008778030,4.99416318,3700.1,3699.9,4.104]
[1753008778230,0.452,3700.0,3699.9,4.104]
[1753008778940,1.682,3700.0,3699.9,4.104]
[1753008779140,1.8164,3700.0,3699.9,4.104]
[1753008779341,4.40258146,3700.0,3699.9,4.104]
[1753008780245,5.63258146,3700.0,3699.9,4.104]
[1753008781139,5.63258146,3700.0,3699.8,0.001]
[1753008781344,6.82328146,3700.0,3699.9,4.104]
[1753008781544,8.05328146,3700.0,3699.9,4.104]
[1753008781969,8.50528146,3700.0,3699.9,4.104]
[1753008782347,6.86258146,3700.0,3699.8,0.001]
[1753008782536,3.85345078,3699.9,3699.8,3.001]
[1753008782949,5.08345078,3699.9,3699.8,3.001]
[1753008784351,6.31345078,3699.9,3699.8,3.001]
[1753008784674,4.29305078,3699.9,3699.8,3.001]
[1753008785043,2.46,3699.9,3699.8,3.001]
[1753008785885,3.69,3699.9,3699.8,3.001]
[1753008787189,4.92,3699.9,3699.8,3.001]
[1753008788551,6.15,3699.9,3699.8,3.001]
[1753008789746,6.15,3699.9,3699.8,3.4305]
[1753008789943,7.38,3699.9,3699.8,3.4305]
[1753008790144,7.38,3699.9,3699.8,4.9328]
[1753008791381,8.61,3699.9,3699.8,4.9328]
[1753008792451,8.61,3699.9,3699.8,5.0672]
[1753008792651,9.84,3699.9,3699.8,5.0672]
[1753008794098,11.07,3699.9,3699.8,5.0672]
[1753008795584,12.3,3699.9,3699.8,5.0672]
[1753008796240,12.89840955,3699.9,3699.8,3.001]
[1753008796498,12.89840955,3699.9,3699.8,0.001]
[1753008796663,13.35040955,3699.9,3699.8,7.105]
[1753008796863,14.58040955,3699.9,3699.8,7.105]
[1753008798524,15.81040955,3699.9,3699.8,7.105]
[1753008799586,15.81040955,3699.9,3699.8,3.001]
[1753008799925,17.04040955,3699.9,3699.8,7.105]
[1753008800422,16.58840955,3699.9,3699.8,7.105]
[1753008800712,17.04040955,3699.9,3699.8,7.105]
[1753008801415,18.27040955,3699.9,3699.8,7.105]
[1753008802562,18.27040955,3699.9,3699.8,3.001]
[1753008802768,25.77760955,3699.9,3699.4,0.001]
[1753008802966,1.5572,3699.7,3699.4,0.001]
[1753008803399,0.452,3699.6,3699.5,4.104]
[1753008803613,0.452,3699.6,3699.4,0.001]
[1753008803784,1.5572,3699.5,3699.4,0.001]
[1753008803984,2.4060421,3699.5,3699.4,0.001]
[1753008804300,4.0880421,3699.5,3699.4,0.001]
[1753008805608,5.3180421,3699.5,3699.4,0.001]
[1753008807366,6.5480421,3699.5,3699.4,0.001]
[1753008807769,10.6511421,3699.5,3699.4,0.001]
[1753008808918,11.8811421,3699.5,3699.4,0.001]
[1753008810086,13.1111421,3699.5,3699.4,0.001]
[1753008810770,8.5560421,3699.5,3699.4,0.001]
[1753008811195,6.9988421,3699.5,3699.4,0.001]
[1753008811614,8.2288421,3699.5,3699.4,0.001]
[1753008812789,7.38,3699.5,3699.4,3.4403]
[1753008812994,8.61,3699.5,3699.4,3.4403]
[1753008814390,9.84,3699.5,3699.4,3.4403]
[1753008815929,11.07,3699.5,3699.4,3.4403]
[1753008817234,12.3,3699.5,3699.4,3.4403]
[1753008818530,13.53,3699.5,3699.4,3.4403]
[1753008820250,14.76,3699.5,3699.4,3.4403]
[1753008821148,14.76,3699.5,3699.4,11.138325]
[1753008821309,14.76,3699.5,3699.4,10.602987]
[1753008821645,15.99,3699.5,3699.4,8.094987]
[1753008822129,15.99,3699.5,3699.4,5.0775]
[1753008822332,15.99,3699.5,3699.4,9.26816]
[1753008822943,17.22,3699.5,3699.4,9.26816]
[1753008823121,17.22,3699.5,3699.4,11.453762]
[1753008823842,17.22,3699.5,3699.4,11.206962]
[1753008824209,18.45,3699.5,3699.4,5.0775]
[1753008824410,18.45,3699.5,3699.4,9.392863]
[1753008824715,18.45,3699.5,3699.4,5.0775]
[1753008824937,18.45,3699.5,3699.4,7.20901]
[1753008825341,18.45,3699.5,3699.4,9.27644]
[1753008825553,19.68,3699.5,3699.4,9.27644]
[1753008826445,19.68,3699.5,3699.4,10.938851]
[1753008826651,19.68,3699.5,3699.4,10.360763]
[1753008826826,20.91,3699.5,3699.4,10.360763]
[1753008827353,20.91,3699.5,3699.4,5.0775]
[1753008827555,20.91,3699.5,3699.4,9.441309]
[1753008828932,22.14,3699.5,3699.4,9.441309]
[1753008829463,22.14,3699.5,3699.4,5.0775]
[1753008829757,22.14,3699.5,3699.4,10.85572]
[1753008830090,22.14,3699.5,3699.4,10.353394]
[1753008830240,23.37,3699.5,3699.4,10.353394]
[1753008830561,23.37,3699.5,3699.4,5.0775]
[1753008830766,23.37,3699.5,3699.4,10.977394]
[1753008831642,24.6,3699.5,3699.4,11.532795]
[1753008831823,24.6,3699.5,3699.4,10.950689]
[1753008832655,24.6,3699.5,3699.4,5.0775]
[1753008832860,24.6,3699.5,3699.4,11.321947]
[1753008833068,25.83,3699.5,3699.4,10.867947]
[1753008833438,25.83,3699.5,3699.4,10.496689]
[1753008833645,25.83,3699.5,3699.4,10.838718]
[1753008834264,25.83,3699.5,3699.4,10.535689]
[1753008834460,27.06,3699.5,3699.4,10.535689]
[1753008834773,27.06,3699.5,3699.4,11.064008]
[1753008835861,27.06,3699.5,3699.4,24.634231]
[1753008836063,28.29,3699.5,3699.4,24.634231]
[1753008836893,28.29,3699.5,3699.4,25.051319]
[1753008837470,29.52,3699.5,3699.4,25.051319]
[1753008837989,29.522,3699.5,3699.4,27.100428]
[1753008838199,29.522,3699.5,3699.4,25.020237]
[1753008838848,30.752,3699.5,3699.4,35.0775]
[1753008840285,34.74096318,3699.5,3699.4,0.001]
[1753008840440,36.72586318,3699.5,3699.4,4.114]
[1753008840642,36.72586318,3699.5,3699.4,2.21770312]
[1753008840842,1.554,3699.4,3699.0,0.001]
[1753008841051,1.554,3699.2,3699.1,7.113]
[1753008841253,1.554,3699.2,3699.1,4.113]
[1753008841464,3.2149,3699.2,3699.1,4.113]
[1753008841654,3.2149,3699.2,3699.0,0.001]
[1753008841866,2.784,3699.2,3699.1,4.113]
[1753008842070,5.54296318,3699.2,3699.1,4.113]
[1753008842397,5.97386318,3699.2,3699.1,4.113]
[1753008842691,1.23,3699.2,3699.1,4.113]
[1753008842900,2.46,3699.2,3699.1,4.113]
[1753008843593,2.46,3699.2,3699.1,4.5686]
[1753008844254,3.69,3699.2,3699.1,9.1033]
[1753008846200,4.92,3699.2,3699.1,9.1033]
[1753008847497,6.15,3699.2,3699.1,9.1033]
[1753008849001,7.38,3699.2,3699.1,9.1033]
[1753008850296,7.38,3699.2,3699.1,9.2377]
[1753008850609,8.61,3699.2,3699.1,9.2377]
[1753008850964,8.61,3699.2,3699.1,7.703]
[1753008851993,9.84,3699.2,3699.1,7.703]
[1753008853506,11.07,3699.2,3699.1,7.703]
[1753008854713,12.3,3699.2,3699.1,7.703]
[1753008856218,13.53,3699.2,3699.1,7.703]
[1753008857017,13.53,3699.2,3699.1,3.59]
[1753008857217,13.53,3699.2,3699.1,7.702]
[1753008857436,13.53,3699.2,3699.1,3.59]
[1753008857637,14.76,3699.2,3699.1,7.701]
[1753008859196,15.99,3699.2,3699.1,7.701]
[1753008859510,15.99,3699.2,3699.1,7.702]
[1753008859894,15.99,3699.2,3699.1,7.2464]
[1753008860109,15.99,3699.2,3699.1,7.2454]
[1753008860322,19.17986318,3699.2,3699.1,0.1354]
[1753008860523,22.00316318,3699.2,3699.1,4.113]
[1753008860727,22.00316318,3699.2,3699.1,7.113]
[1753008862395,23.23316318,3699.2,3699.1,3.001]
[1753008862595,23.23316318,3699.2,3699.1,7.114]
[1753008863247,22.80226318,3699.2,3699.1,7.114]
[1753008863420,18.45,3699.2,3699.1,7.112]
[1753008863621,18.45,3699.2,3699.1,7.2464]
[1753008863834,21.2425,3699.2,3699.1,3.1354]
[1753008864003,21.6734,3699.2,3699.1,7.115]
[1753008865232,22.9034,3699.2,3699.1,7.115]
[1753008865438,25.66236318,3699.2,3699.1,7.115]
[1753008865754,25.66236318,3699.2,3699.1,3.001]
[1753008866056,25.66236318,3699.2,3699.1,7.115]
[1753008866549,26.89236318,3699.2,3699.1,7.115]
[1753008867934,28.12236318,3699.2,3699.1,3.001]
[1753008869213,29.35236318,3699.2,3699.1,3.001]
[1753008870525,30.58236318,3699.2,3699.1,3.001]
[1753008871525,34.69436318,3699.2,3699.0,0.001]
[1753008871727,4.37196318,3699.1,3699.0,0.001]
[1753008871939,4.83356318,3699.1,3699.0,0.001]
[1753008872920,7.67556318,3699.1,3699.0,0.001]
[1753008873123,4.83356318,3699.1,3699.0,0.001]
[1753008873324,6.06356318,3699.1,3699.0,0.001]
[1753008873633,6.06356318,3699.1,3699.0,3.001]
[1753008874957,7.29356318,3699.1,3699.0,3.001]
[1753008876269,8.52356318,3699.1,3699.0,3.001]
[1753008877568,9.75356318,3699.1,3699.0,3.001]
[1753008879031,10.98356318,3699.1,3699.0,3.001]
[1753008879207,10.98356318,3699.1,3699.0,0.001]
[1753008879406,10.98356318,3699.1,3699.0,3.001]
[1753008879580,10.98356318,3699.1,3699.0,0.001]
[1753008879995,18.40692345,3699.1,3699.0,0.001]
[1753008880193,1.6305,3698.9,3698.3,0.001]
[1753008880397,1.6305,3698.7,3698.3,3.001]
[1753008880580,4.5706,3698.6,3698.3,0.001]
[1753008880974,4.109,3698.6,3698.3,0.001]
[1753008881175,0.4616,3698.5,3698.3,0.001]
[1753008881676,0.4616,3698.4,3698.3,0.001]
[1753008881874,1.08171,3698.4,3698.3,0.001]
[1753008882108,0.62011,3698.4,3698.3,0.001]
[1753008885091,0.62011,3698.4,3697.3,1.6028]
[1753008885092,10.98761,3698.4,3697.3,1.6028]
[1753008885396,0.4616,3698.3,3697.4,3.0]
[1753008885599,1.5345,3698.1,3696.8,1.72186956]
[1753008885802,4.23880138,3697.9,3696.9,4.119]
[1753008885982,4.119,3697.8,3697.0,3.0]
[1753008886327,0.88194014,3697.7,3696.8,1.6028]
[1753008886622,1.34354014,3697.7,3697.2,3.0]
[1753008887305,0.4616,3697.6,3697.2,3.0]
[1753008887905,0.88194014,3697.7,3697.2,3.0]
[1753008888400,1.5345,3697.9,3697.5,0.4731]
[1753008888599,4.12,3697.9,3697.6,0.4721]
[1753008890079,0.1352,3697.8,3697.5,0.001]
[1753008890278,0.1352,3697.8,3697.5,0.4731]
[1753008891875,0.1352,3697.8,3697.5,0.001]
[1753008892529,0.1352,3697.8,3697.6,0.4721]
[1753008892693,0.1352,3697.8,3697.7,0.4721]
[1753008892885,0.1352,3698.1,3697.7,0.4721]
[1753008893084,0.1352,3698.1,3697.6,3.0]
[1753008893398,0.1352,3698.1,3697.8,0.4721]
[1753008893719,0.1352,3698.1,3697.9,0.4721]
[1753008895183,0.1213251,3698.1,3697.9,0.4721]
[1753008895384,0.1213251,3698.1,3697.6,3.4721]
[1753008895707,1.5785,3698.9,3697.9,0.4721]
[1753008895912,0.1344,3698.5,3698.0,3.0]
[1753008896294,0.1344,3698.5,3698.1,0.4721]
[1753008897526,4.98,3699.0,3698.2,0.4721]
[1753008897728,6.21,3699.0,3698.4,3.0]
[1753008897940,2.75896318,3698.9,3698.4,3.0]
[1753008898147,2.75896318,3698.9,3698.4,0.20372176]
[1753008898148,0.2917,3698.8,3698.4,0.20372176]
[1753008898635,1.6613,3698.6,3698.3,3.0]
[1753008898837,1.953,3698.6,3698.2,3.0]
[1753008899199,0.2917,3698.5,3697.8,1.5231]
[1753008899407,0.1953,3698.4,3697.9,4.119]
[1753008899639,0.2917,3698.3,3697.9,4.119]
[1753008900461,0.1953,3698.4,3697.9,4.119]
[1753008900619,0.2917,3698.2,3697.9,4.119]
[1753008900837,1.6613,3698.1,3697.5,0.001]
[1753008901007,0.21311,3698.0,3697.5,0.001]
[1753008901206,0.21311,3698.0,3697.5,4.12]
[1753008901618,0.21311,3698.0,3697.5,0.001]
[1753008901817,0.68291,3698.0,3697.5,0.001]
[1753008903149,0.21311,3698.0,3697.5,0.001]
[1753008903362,0.187441,3697.9,3697.5,0.001]
[1753008903564,0.187441,3697.9,3697.5,0.4632]
[1753008903867,0.187441,3697.9,3697.5,0.001]
[1753008905166,0.657241,3697.9,3697.5,0.001]
[1753008905520,0.4698,3697.8,3697.5,0.001]
[1753008905930,1.6382,3697.7,3697.5,0.001]
[1753008906130,0.1825641,3697.6,3697.5,0.001]
[1753008906637,1.6382,3698.3,3697.5,1.6594]
[1753008906962,1.6382,3698.3,3697.6,4.117]
[1753008907535,0.1352,3698.1,3697.6,4.117]
[1753008908066,0.1352,3698.1,3697.7,0.4622]
[1753008908271,0.31254,3698.1,3697.7,0.4622]
[1753008908769,0.1352,3698.1,3697.8,0.4622]
[1753008908928,0.1352,3698.1,3697.9,0.4622]
[1753008910259,0.1352,3698.1,3698.0,0.4622]
[1753008911747,0.1344,3698.3,3698.0,0.4622]
[1753008911948,0.1344,3698.3,3698.1,0.4622]
[1753008912371,0.26,3698.2,3698.1,0.4622]
[1753008913646,0.26,3698.2,3697.7,3.1352]
[1753008913986,0.26,3698.2,3697.9,0.4622]
[1753008914186,0.77144,3698.2,3697.9,0.4622]
[1753008914895,0.77144,3698.2,3697.7,0.1352]
[1753008915185,2.1557,3698.1,3697.7,3.0]
[1753008915351,2.1557,3698.1,3697.5,0.1362]
[1753008915547,2.1557,3698.1,3697.5,0.001]
[1753008915548,1.5507,3698.1,3697.5,0.001]
[1753008915859,0.1352,3697.9,3697.5,0.001]
[1753008916070,0.1352,3697.9,3697.6,0.4622]
[1753008916260,0.4698,3697.8,3697.5,0.001]
[1753008916464,0.7298,3697.8,3697.5,0.001]
[1753008916665,2.0205,3697.7,3697.5,0.001]
[1753008916885,0.70005,3697.6,3697.5,0.001]
[1753008917378,0.96005,3697.6,3697.5,0.001]
[1753008922585,1.42985,3697.6,3697.5,0.001]
[1753008926127,7.08055,3697.6,3697.5,0.001]
[1753008926934,9.78500694,3697.6,3697.5,0.001]
[1753008927104,5.66900694,3697.6,3697.5,0.001]
[1753008927288,9.78400694,3697.6,3697.5,0.001]
[1753008928330,2.96455,3697.6,3697.5,0.001]
[1753008928531,7.07855,3697.6,3697.5,0.001]
[1753008929501,8.23455,3697.6,3697.5,0.001]
[1753008929728,15.05300694,3697.6,3697.5,0.001]
[1753008935207,12.34855,3697.6,3697.5,0.001]
[1753008935407,15.05300694,3697.6,3697.5,0.001]
[1753008937313,15.05000694,3697.6,3697.5,0.001]
[1753008938246,15.04900694,3697.6,3697.5,0.001]
[1753008939554,10.93900694,3697.6,3697.5,0.001]
[1753008939759,15.04900694,3697.6,3697.5,0.001]
[1753008941032,15.04800694,3697.6,3697.5,0.001]
[1753008942636,0.96005,3697.6,3697.5,0.001]
[1753008942835,0.26,3697.6,3697.5,0.001]
[1753008943022,4.7249,3697.6,3696.7,0.001]
[1753008943229,0.55,3697.1,3696.7,0.001]
[1753008943433,0.55,3696.9,3696.7,0.001]
[1753008943651,4.74269,3696.8,3696.7,0.001]
[1753008943851,5.00269,3696.8,3696.7,0.001]
[1753008944622,0.26,3696.8,3696.7,0.4387]
[1753008944961,4.374,3696.8,3696.7,0.4387]
[1753008945321,4.374,3696.8,3696.7,0.001]
[1753008946941,4.373,3696.8,3696.7,0.001]
[1753008947141,4.373,3696.8,3696.7,0.4387]
[1753008947565,0.26,3696.8,3696.7,0.4387]
[1753008947776,4.373,3696.8,3696.7,0.4387]
[1753008947954,4.113,3696.8,3696.7,0.4387]
[1753008948155,4.373,3696.8,3696.7,0.4387]
[1753008948352,4.373,3696.8,3696.6,0.001]
[1753008948555,4.8103,3696.8,3696.6,0.001]
[1753008949079,4.8103,3696.8,3696.6,0.4387]
[1753008949481,4.8103,3696.8,3696.7,0.4377]
[1753008949881,0.26,3696.8,3696.7,0.4377]
[1753008951157,0.26,3696.8,3696.7,2.006]
[1753008951862,0.26,3696.8,3696.6,0.001]
[1753008952680,0.26,3696.8,3696.7,0.4377]
[1753008953038,0.3952,3696.8,3696.7,0.4377]
[1753008953244,0.3952,3696.8,3696.7,2.0581]
[1753008958196,1.6375,3698.8,3696.9,1.5392]
[1753008958349,0.1344,3698.3,3697.7,0.1352]
[1753008958669,0.02,3698.2,3697.9,3.0]
[1753008958846,0.02,3698.2,3697.9,1.06998577]
[1753008959053,0.02,3698.2,3698.0,0.4732]
[1753008959466,0.02,3698.2,3698.1,0.4732]
[1753008959794,0.02,3698.2,3698.1,2.0124]
[1753008959993,0.02,3698.2,3698.1,2.1476]
[1753008960168,0.02,3698.2,3698.1,1.5392]
[1753008960490,0.1352,3698.1,3697.8,0.4732]
[1753008961454,0.02,3698.0,3697.7,1.5392]
[1753008961652,0.02,3698.0,3697.3,1.5392]
[1753008961653,0.5732,3697.9,3697.3,1.5392]
[1753008961895,0.1352,3697.5,3697.3,1.5392]
[1753008962558,0.1352,3697.5,3697.3,2.0124]
[1753008963552,0.1352,3697.5,3697.3,1.5392]
[1753008963753,0.1352,3697.5,3697.3,2.0124]
[1753008964971,0.02,3698.0,3697.4,0.4732]
[1753008965154,0.1352,3697.8,3697.4,0.4732]
[1753008965656,0.02,3697.7,3697.4,0.4732]
[1753008966083,0.02,3697.7,3697.5,3.0]
[1753008966756,0.02,3697.7,3697.6,0.4732]
[1753008967682,2.1032,3697.7,3696.7,1.5929]
[1753008967850,0.21032,3697.6,3696.8,0.4732]
[1753008968265,2.1032,3697.7,3696.8,0.4732]
[1753008968596,1.6652,3697.7,3696.8,0.4732]
[1753008968952,1.6652,3697.7,3696.8,3.4732]
[1753008969156,1.6652,3697.7,3696.9,0.4732]
[1753008972361,2.1032,3697.7,3696.9,0.4732]
[1753008972563,2.85436862,3697.7,3696.9,0.4732]
[1753008975011,5.55875794,3697.7,3696.9,0.4732]
[1753008975224,2.70447028,3697.6,3696.9,0.4732]
[1753008975728,5.55877233,3697.7,3696.9,0.4732]
[1753008976514,2.70447118,3697.6,3696.9,0.4732]
[1753008976681,0.438,3697.5,3696.9,0.4732]
[1753008977102,0.438,3697.5,3697.0,3.0]
[1753008977297,3.53076628,3697.6,3697.0,3.0]
[1753008977500,0.438,3697.4,3697.0,3.0]
[1753008977699,0.1352,3697.1,3696.7,1.5929]
[1753008978019,0.1352,3697.1,3697.0,4.148]
[1753008979199,0.1352,3697.1,3697.0,3.0]
[1753008979405,0.5732,3697.1,3697.0,3.0]
[1753008979611,0.5732,3697.1,3696.6,0.001]
[1753008979612,2.44878649,3697.1,3696.6,0.001]
[1753008979800,0.438,3697.0,3696.6,0.001]
[1753008980132,2.70508651,3696.8,3696.6,0.001]
[1753008980336,0.02,3696.7,3696.6,0.001]
[1753008980513,2.72511537,3696.7,3696.6,0.001]
[1753008980696,3.70612473,3696.7,3696.6,0.001]
[1753008981598,1.00100936,3696.7,3696.6,0.001]
[1753008982710,3.70612473,3696.7,3696.6,0.001]
[1753008983119,1.00100936,3696.7,3696.6,0.001]
[1753008985547,0.56300936,3696.7,3696.6,0.001]
[1753008985905,1.00100936,3696.7,3696.6,0.001]
[1753008986546,2.7052492,3696.6,3696.4,0.4]
[1753008986850,0.438,3696.5,3696.4,0.4]
[1753008989345,3.14326173,3696.5,3696.4,0.4]
[1753008989706,3.14646173,3696.5,3696.4,0.4]
[1753008990451,0.4412,3696.5,3696.4,0.4]
[1753008990636,0.95231056,3696.5,3696.4,0.4]
[1753008992276,5.69231056,3696.5,3696.4,0.4]
[1753008992572,8.39757229,3696.5,3696.4,0.4]
[1753008993072,5.69231056,3696.5,3696.4,0.4]
[1753008993672,5.25111056,3696.5,3696.4,0.4]
[1753008994329,4.74,3696.5,3696.4,0.4]
[1753008994883,4.74,3696.5,3696.4,0.8642]
[1753008995537,4.74,3696.5,3696.4,0.4]
[1753008996631,4.74,3696.5,3696.4,0.8642]
[1753008998132,4.74,3696.5,3696.4,0.4]
[1753008998733,4.74,3696.5,3696.4,9.603]
[1753008998945,0.02,3696.5,3696.4,9.7382]
[1753009001660,0.1352,3697.3,3696.6,1.5928]
[1753009002045,0.1352,3697.3,3696.9,1.5928]
[1753009002260,0.1352,3697.3,3697.1,3.0]
[1753009002892,0.1352,3697.3,3697.2,0.4642]